Cogmind - Beta 12 @@@ ROGUE MODE // 2023.06.05 @ 08:51:02 Player: eldritch Result: Self-destructed Performance ------------- Evolutions (1) 500 Regions Visited (3) 600 Robots Destroyed (27) 135 Value Destroyed (554) 554 Prototype IDs (1) 20 Alien Tech Used (0) 0 Bonus (0) 0 TOTAL SCORE: 1809 Bonus ------- None Cogmind --------- Core Integrity 307/400 Matter 300/300 Energy 280/280 System Corruption 0% Temperature Cool (25) Movement Walking (120) Location -9/Mines Parts ------- > --- POWER (1) -------- Heavy Ion Engine > --- PROPULSION (3) --- Aluminum Leg Aluminum Leg Improved Aluminum Leg > --- UTILITY (3) ------ Heat Sink Medium Storage Unit Improved Terrain Scan Processor > --- WEAPON (2) ------- Beam Rifle > --- INVENTORY (10) --- Light Nuclear Core Improved Aluminum Leg Improved Aluminum Leg Large Matter Pod (150) Improved Terrain Scanner Seismic Detector Hardlight Generator Medium Laser Improved Light Cannon Grenade Launcher Peak State ------------ > --- POWER ------------ Heavy Ion Engine > --- PROPULSION ------- Aluminum Leg Aluminum Leg Improved Aluminum Leg > --- UTILITY ---------- Medium Storage Unit Improved Terrain Scan Processor Seismic Detector > --- WEAPON ----------- Beam Rifle Grenade Launcher > --- INVENTORY -------- Light Nuclear Core Improved Aluminum Leg Improved Aluminum Leg Heat Sink Large Matter Pod Improved Terrain Scanner Hardlight Generator Medium Laser Medium Laser Improved Light Cannon [Rating: 16] Favorites ----------- Power Light Ion Engine Engine Light Ion Engine Propulsion Aluminum Leg Leg Aluminum Leg Utility Medium Storage Unit Device Heat Sink Storage Medium Storage Unit Processor Improved Terrain Scan Processor Weapon Medium Laser Energy Gun Medium Laser Ballistic Gun Light Assault Rifle Launcher Grenade Launcher Build | -11 -10 -9 -9 ------- Run | Jun Mat Mat Min Slots Evolved 2 | . . 2 . Power . | . . . . Propulsion 1 | . . 1 . Utility 1 | . . 1 . Weapon . | . . . . Parts Attached 39 | 7 11 21 . Power 3 | 1 1 1 . Engine 3 | 1 1 1 . Core . | . . . . Reactor . | . . . . Propulsion 7 | 2 1 4 . Treads . | . . . . Leg 7 | 2 1 4 . Wheel . | . . . . Hover . | . . . . Flight . | . . . . Utility 13 | 2 4 7 . Device 9 | 1 3 5 . Storage 3 | 1 1 1 . Processor 1 | . . 1 . Hackware . | . . . . Protection . | . . . . Artifact . | . . . . Weapon 16 | 2 5 9 . Energy Gun 10 | 2 3 5 . Energy Cannon . | . . . . Ballistic Gun 1 | . 1 . . Ballistic Cannon . | . . . . Launcher 5 | . 1 4 . Special Weapon . | . . . . Impact Weapon . | . . . . Slashing Weapon . | . . . . Piercing Weapon . | . . . . Special Melee Weapon . | . . . . Unidentified Prototypes 1 | . . 1 . Parts Lost 1 | . . . 1 Power . | . . . . Propulsion . | . . . . Utility . | . . . . Weapon 1 | . . . 1 Highest Loss Streak 1 | . . . 1 To Critical Strikes . | . . . . Average Slot Usage (%) 98 | . 98 99 100 Engine 12 | . 14 11 11 Leg 29 | . 28 32 33 Device 14 | . 12 16 11 Storage 13 | . 14 12 11 Processor 1 | . . 4 11 Energy Gun 22 | . 25 18 22 Ballistic Gun 1 | . 2 . . Launcher 1 | . . 3 . Naked Turns . | . . . . Heaviest Build 26 | 12 18 26 . Greatest Support 33 | 20 20 33 . Greatest Overweight (x) 1 | 1 . . . Average Overweight (x) . | . . . . Largest Inventory Capacity 10 | 8 10 10 10 Average Capacity 9 | 7 9 10 10 Most Carried 10 | 3 10 10 10 Average Carried 8 | 1 7 9 10 Final Capacity 10 | 8 10 10 10 Final Carried 10 | 3 10 10 10 Class Distribution -------------------- 52% | Mutant 47% | Scavenger-Mutant Dominant Class ---------------- Mutant | -10/Materials Scavenger-Mutant | -9/Materials Scavenger-Mutant | -9/Mines Resources | -11 -10 -9 -9 ----------- Run | Jun Mat Mat Min Matter Collected 836 | 270 246 320 . Remotely . | . . . . Salvage Created 698 | 78 197 423 . Parts 54 | 7 16 31 . Haulers Intercepted 2 | . 1 1 . Recyclers Shooed 1 | . . 1 . Parts Field Recycled . | . . . . Retrieved Matter . | . . . . Parts Self-Destructed . | . . . . Prevented . | . . . . Kills | -11 -10 -9 -9 ------- Run | Jun Mat Mat Min Combat Hostiles Destroyed 20 | . 6 14 . Guns 6 | . 3 3 . AOE 12 | . 3 9 . Classes Destroyed 9 | 2 4 3 . Tunneler 1 | 1 . . . Hauler 2 | . 1 1 . Recycler 2 | 1 . 1 . Watcher 2 | . 1 1 . Swarmer 10 | . 3 7 . Grunt 7 | . 3 4 . Brawler 1 | . . 1 . Duelist 1 | . . 1 . Sentry 1 | . . 1 . Best Kill Streak 4 | 2 3 4 . Combat Bots Only 4 | . 3 4 . Max Kills in Single Turn 4 | 1 2 4 . Gunslinging . | . . . . Exploded 3 | . 2 3 . Melee . | . . . . Uniques/NPCs Destroyed . | . . . . Combat | -11 -10 -9 -9 -------- Run | Jun Mat Mat Min Damage Taken 769 | . 257 431 81 Core 118 | . 25 80 13 Absorbed by Shields 8 | . . 8 . Core Remaining (%) 95 | 100 90 . . Volleys Fired 52 | 3 23 24 2 Largest 2 | 2 2 2 2 Hottest 106 | 90 100 106 106 Shots Fired 99 | 6 44 46 3 Gun 90 | 6 42 39 3 Cannon . | . . . . Launcher 9 | . 2 7 . Special . | . . . . Kinetic 6 | . 6 . . Thermal 84 | 6 36 39 3 Explosive 9 | . 2 7 . Electromagnetic . | . . . . Robot Hit Streak 12 | 2 8 12 4 Robot Miss Streak 3 | 1 3 2 . Penetration Max . | . . . . Secondary Targets 1 | . . 1 . Max Gunslinging Chain 1 | . . 1 . Shots Hit Robots 64 | 4 27 30 3 Core Hits 38 | 3 12 23 . Critical Kills . | . . . . Critical Parts Destroyed . | . . . . Critical Strikes 5 | . 1 4 . Burn 5 | . 1 4 . Melee Attacks . | . . . . Impact . | . . . . Slashing . | . . . . Piercing . | . . . . Sneak Attacks . | . . . . Combat Hostiles . | . . . . Follow-up Attacks . | . . . . Damage Inflicted 1514 | 44 453 977 40 Guns 797 | 44 313 400 40 Cannons . | . . . . Explosions 717 | . 140 577 . Melee . | . . . . Ramming . | . . . . Kinetic 13 | . 13 . . Thermal 784 | 44 300 400 40 Explosive 717 | . 140 577 . Electromagnetic . | . . . . Impact . | . . . . Slashing . | . . . . Piercing . | . . . . Highest Corruption . | . . . . Average Corruption . | . . . . Corruption Purged . | . . . . Corruption Blocked . | . . . . Overload Shots . | . . . . Overflow Damage 42 | . 30 12 . Projectiles . | . . . . Explosions 42 | . 30 12 . Melee . | . . . . Knockbacks . | . . . . Impact . | . . . . Kinetic . | . . . . Secondary . | . . . . Self-Inflicted Damage 35 | . . 35 . Shots 2 | . . 2 . Rammed . | . . . . Targets Rammed . | . . . . Kicked . | . . . . Crushed . | . . . . Highest Temperature 231 | 30 231 215 21 Average Temperature 83 | 16 94 85 14 Received Heat Transfer 324 | . 138 162 24 Siege Activations . | . . . . Robots Corrupted . | . . . . Combat Hostiles . | . . . . Parts Fried . | . . . . Impact Corruptions . | . . . . Robots Melted 2 | . . 2 . Combat Hostiles 2 | . . 2 . Parts Melted 9 | 1 2 6 . Heat Transferred 2520 | 112 891 1406 111 Parts Sabotaged . | . . . . Parts Stolen . | . . . . Parts Stripped . | . . . . Power Chain Reactions . | . . . . Missiles Intercepted . | . . . . Alert | -11 -10 -9 -9 ------- Run | Jun Mat Mat Min Peak Influence 396 | 10 103 396 74 Initial 74 | . 6 42 74 Average 120 | 3 40 248 68 Maximum Alert Level 1 | . . 1 . Low Security (%) 70 | 100 100 25 100 Level 1 29 | . . 74 . Level 2 . | . . . . Level 3 . | . . . . Level 4 . | . . . . Level 5 . | . . . . High Security . | . . . . Max Security . | . . . . Squads Dispatched 1 | . 1 . . Investigation 1 | . 1 . . Extermination . | . . . . Reinforcement . | . . . . Assault . | . . . . Garrison . | . . . . Intercept . | . . . . Searches Triggered . | . . . . Construction Impeded . | . . . . Haulers Reinforced . | . . . . Active Scanning Responses . | . . . . Cargo Convoy Interrupts . | . . . . Stealth | -11 -10 -9 -9 --------- Run | Jun Mat Mat Min Distress Signals 2 | . 1 1 . Communications Jammed . | . . . . Distress Signals . | . . . . Times Spotted 30 | . 10 17 3 Peak Tracking Total 5 | . 3 5 3 Tactical Retreats 2 | . . 2 . Traps | -11 -10 -9 -9 ------- Run | Jun Mat Mat Min Traps Triggered . | . . . . Indirectly . | . . . . Trap Hack Attempts . | . . . . Triggered . | . . . . Disarmed . | . . . . Reprogrammed . | . . . . Reused . | . . . . Traps Extracted . | . . . . Installed . | . . . . Triggered . | . . . . Machines | -11 -10 -9 -9 ---------- Run | Jun Mat Mat Min Machines Disabled 2 | . . 2 . Max in Single Turn 1 | . . 1 . Machines Repaired . | . . . . Machines Sabotaged . | . . . . Overloaded Fab Kills . | . . . . Hacking | -11 -10 -9 -9 --------- Run | Jun Mat Mat Min Machines Accessed 6 | . 2 4 . Terminals 6 | . 2 4 . Fabricators . | . . . . Repair Stations . | . . . . Recycling Units . | . . . . Scanalyzers . | . . . . Garrison Access . | . . . . Total Hacks 16 | . 8 8 . Successful 8 | . 3 5 . Failed 8 | . 5 3 . Catastrophic 3 | . 2 1 . Database Lockouts . | . . . . Manual 7 | . 1 6 . Terminals 16 | . 8 8 . Fabricators . | . . . . Repair Stations . | . . . . Recycling Units . | . . . . Scanalyzers . | . . . . Garrison Access . | . . . . Terminal Hacks 4 | . 2 2 . Branch Access Points 1 | . 1 . . Terminal Index 1 | . . 1 . Repair Station Index 1 | . 1 . . Unreport Threat 1 | . . 1 . Fabricator Hacks . | . . . . Repair Station Hacks . | . . . . Recycling Unit Hacks . | . . . . Scanalyzer . | . . . . Garrison Access Hacks . | . . . . Unauthorized Hacks 4 | . 1 3 . Terminals 4 | . 1 3 . Track 1 | . 1 . . Botnet 3 | . . 3 . Fabricators . | . . . . Repair Stations . | . . . . Recycling Units . | . . . . Scanalyzers . | . . . . Garrison Access . | . . . . Data Cores Recovered . | . . . . Used . | . . . . Hacking Detections 6 | . 2 4 . Full Trace Events 1 | . 1 . . Feedback Events . | . . . . Feedback Blocked . | . . . . Robot Schematics Acquired . | . . . . Robots Built . | . . . . Authchips . | . . . . Time . | . . . . Total Robot Build Rating . | . . . . Part Schematics Acquired . | . . . . Parts Built . | . . . . Authchips . | . . . . Time . | . . . . Total Part Build Rating . | . . . . Parts Repaired . | . . . . Time . | . . . . Parts Recycled . | . . . . Recycled Matter . | . . . . Retrieved Matter . | . . . . Retrieved Components . | . . . . Parts Scanalyzed . | . . . . Part Schematics Acquired . | . . . . Parts Damaged . | . . . . Bothacking | -11 -10 -9 -9 ------------ Run | Jun Mat Mat Min Used RIF Installer . | . . . . Robots Hacked . | . . . . Non-combat . | . . . . Combat . | . . . . Robot Hacks Applied . | . . . . Relay Couplers Released . | . . . . Fabnet Peak Effective % . | . . . . Robots Rewired . | . . . . Allies Hacked . | . . . . Hacks Repelled . | . . . . Allies | -11 -10 -9 -9 -------- Run | Jun Mat Mat Min Total Allies . | . . . . Largest Group . | . . . . Highest-Rated Group . | . . . . Highest-Rated Ally . | . . . . Total Orders . | . . . . Ally Attacks . | . . . . Total Damage . | . . . . Kills . | . . . . Allies Corrupted . | . . . . Allies Melted . | . . . . Intel | -11 -10 -9 -9 ------- Run | Jun Mat Mat Min Robot Analysis Total . | . . . . Derelict Logs Recovered . | . . . . Drone Launches . | . . . . Drone Recoveries . | . . . . Exploration | -11 -10 -9 -9 ------------- Run | Jun Mat Mat Min Turns Passed 1153 | 92 595 461 5 Spaces Moved 739 | 71 391 277 . Core 25 | 25 . . . Treads . | . . . . Legs 714 | 46 391 277 . Wheels . | . . . . Hover . | . . . . Flight . | . . . . Fastest Speed 50 | 50 120 120 . Average Speed 117 | 98 120 120 . Slowest Speed 120 | 120 120 120 . Overloaded Moves . | . . . . Propulsion Burnouts . | . . . . Robots Hopped . | . . . . Cave-ins Triggered . | . . . . Exploration Rate (%) 23 | 5 52 32 4 Regions Visited 3 Branch Regions 1 Pre-discovered Areas . | . . . . Known Exits Taken . | . . . . Unknown Exits Taken 3 | 1 1 1 . Scrap Searched . | . . . . Spaces Dug . | . . . . Terrain Destroyed 51 | . 12 39 . Melee . | . . . . Projectile . | . . . . AOE 51 | . 12 39 . Terrain Rammed . | . . . . Walls Destroyed . | . . . . Machines Disabled . | . . . . Actions | -11 -10 -9 -9 --------- Run | Jun Mat Mat Min Total 919 | 83 476 358 2 Wait 58 | . 33 25 . Move 736 | 70 390 276 . Hop . | . . . . Pick Up 17 | 3 10 4 . Fast Attach 10 | 7 1 2 . Attach 1 | . . 1 . Detach 1 | . 1 . . Swap 28 | . 10 18 . Drop 16 | . 8 8 . Fire 52 | 3 23 24 2 Melee . | . . . . Ram . | . . . . Kick . | . . . . Crush . | . . . . Escape Stasis . | . . . . Rewire . | . . . . Trap . | . . . . Miscellaneous . | . . . . Route ------- -11/Junkyard -10/Materials (discovered 3 exits: *Mat x2 / Min) -9/Materials -9/Mines History --------- Turn | Location | Event 4 | -11/Junkyard | Discovered new exit (range 16) 93 | -11/Junkyard | Entered Materials 315 | -10/Materials | Build established: Mutant 387 | -10/Materials | Discovered new exit (range 6) 520 | -10/Materials | Identified exit to Mines 658 | -10/Materials | Discovered new exit (range 4) 688 | -10/Materials | Entered another Materials area 688 | -9/Materials | Evolved 2 slots: Propulsion x1, Utility x1 982 | -9/Materials | Build established: Scavenger-Mutant 1138 | -9/Materials | Discovered new exit (range 8) 1149 | -9/Materials | Entered Mines 1154 | -9/Mines | Self-destructed Last Messages --------------- 01112_ G-34 Mercenary heat damages core (-6). 01112_ Sml. Laser melted. 01112_ R-06 Scavenger collects Hammer. 01113_ K-01 Serf collects debris. 01113_ G-34 Mercenary suffers critical hit (Burn). 01113_ G-34 Mercenary destroyed. 01114_ Acquired 33 matter. 01116_ K-01 Serf collects debris. 01116_ Acquired 51 matter. 01119_ Dropped Aluminum Leg. 01119_ K-01 Serf collects debris. 01123_ Acquired 58 matter. 01125_ K-01 Serf collects debris. 01132_ Acquired 12 matter. 01134_ K-01 Serf collects debris. 01138_ EXIT=FOUND LOCATION=UNKNOWN GOAL=ESCAPE Something is scanning the area. 01151_ Med. Laser destroyed. Map ----- +----------------------------------------------------+ | | | ????????????????????????????????????????????? | | ????????????????????????????????????????????? | | ????????????????????????????????????????????? | | ????????????????????????????????????????????? | | ????????????????????????????????????????????? | | ????????????????????????????????????????????? | | ????????????????????????????????????????????? | | ????????????????????????????????????????????? | | ????????????????????????????????????????????? | | ????????????????????????????????????????????? | | ????????????????????????????????????????????? | | ????????????????????????????????????????????? | | ????????????????????????????????????????????? | | ????????????????????????????????????????????? | | ????????????????????????????????????????????? | | ????????????????????????????????????????????? | | ????????????????????????????????????????????? | | ????????????????????????????????????????????? | | ????????????????????????????????????????????? | | ????????????????????????????????????????????? | | ????????????????????????????????????????????? | | ????????????????????????????????????????????? | | ????????????????########## ##???????????????? | | ????????????????# #???????????????? | | ????????????????# @ """ #???????????????? | | ????????????????# gl """ #???????????????? | | ????????????????# g """ #???????????????? | | ??????????????? #???????????????? | | ??????????????### #???????????????? | | ????????????????## ##########???????????????? | | ????????????????? ?????????????????????????? | | ?????????????????# ?????????????????????????? | | ????????????????? ?????????????????????????? | | ????????????????? ??????????????????????????? | | ????????????????? ??????????????????????????? | | ???????????????? ??????????????????????????? | | ???????????????? ???????????????????????????? | | ???????????????? ???????????????????????????? | | ???????????????? ???????????????????????????? | | ????????????????????????????????????????????? | | ????????????????????????????????????????????? | | ????????????????????????????????????????????? | | ????????????????????????????????????????????? | | ????????????????????????????????????????????? | | ????????????????????????????????????????????? | | ????????????????????????????????????????????? | | ????????????????????????????????????????????? | | ????????????????????????????????????????????? | | ????????????????????????????????????????????? | +----------------------------------------------------+ Best States ------------- Heat Dissipation 38 Energy Generation 14 Energy Capacity 280 Matter Stores 415 Matter Capacity 450 Sight Range 16 Terrain Scan Range 16 Terrain Scan Density 110 Evasion (%) 55 Item Schematics ----------------- None Robot Schematics ------------------ None Fabricated ------------ Nothing Alien Tech Used ----------------- None Achievements -------------- None Challenges ------------ None Game ------ Seed ReactiveGravitySink Manual? 0 Play Time 00:13:03 Cumulative 269.1 hours Start 2023.06.05 @ 08:37:54 End 2023.06.05 @ 08:51:02 Sessions 1 Manual Loads 0 Difficulty Rogue Special Mode None Game No. 615 Rogue 615 Adventurer 0 Explorer 0 Win Type - Total 5 Types 4/0/0/1/0/0/0/0/0 Lore% 60 Gallery% 63 Achievement% 57 Wizard Run 0 Options --------- ASCII 0 Keyboard 0 Movement Numpad Keybinds 0 Fullscreen 1 Font 18/SmallcapsGlow Map View 76x50 Tactical HUD 1 Map Filters NONE Filters NONE Steam 1 RUN: efacdb56-357c-4025-b316-c10a46714afe